[Event "Budapest IM-B ONE WEEK Feb 2024"]
[Site "Budapest"]
[Date "2024.03.02"]
[Round "9.2"]
[White "Poysti, Nathanael"]
[Black "Velikic, Adela"]
[Result "1/2-1/2"]
[ECO "A20"]
[WhiteElo "2163"]
[BlackElo "2266"]
[Annotator "TA"]
[PlyCount "82"]
[EventDate "2024.02.25"]
[EventType "tourn"]
[EventCountry "HUN"]
[SourceTitle "playchess.com"]
[Source "ChessBase"]
[SourceQuality "1"]
[TimeControl "5400+30"]

{[%evp 12,82,11,1,15,5,18,-3,0,-8,2,-14,0,-3,0,-2,0,0,18,12,0,-35,16,-35,23,7,0,0,0,0,49,-23,0,0,0,0,-8,0,29,3,8,16,8,0,49,43,101,50,62,57,99,27,90,0,0,0,0,0,0,0,6,8,11,0,0,0,0,0,0,0,0,0,-8]} 1. c4 {[%emt 0:00:02]} e5 {[%emt 0:00:09]} 2. g3 {[%emt 0:00:38]} d6 {[%emt 0:00:14]} 3. Bg2 {[%emt 0:01:18]} f5 {[%emt 0:00:16]} 4. Nc3 {[%emt 0:00:52]} Be7 {[%emt 0:00:24]} 5. d3 {[%emt 0:02:11]} Nf6 {[%emt 0:00:19]} 6. e3 {[%emt 0:00:50]} O-O {[%emt 0:01:05]} 7. Nge2 {[%emt 0:00:02]} a5 {[%emt 0:01:45]} 8. O-O {[%emt 0:00:19]} Qe8 {[%emt 0:00:45]} 9. f4 {[%emt 0:03:01]} c6 {[%emt 0:06:46]} 10. b3 {[%emt 0:00:36]} Na6 {[%emt 0:05:48]} 11. Bb2 {[%emt 0:07:40][%cal Bc1b2,Bb2c3,Bc3b4][%mdl 32]} Bd8 {[%emt 0:08:14]} 12. Qd2 {[%emt 0:00:53]} Bb6 {[%emt 0:17:23]} 13. d4 {[%emt 0:02:58]} exd4 {[%emt 0:14:23]} 14. exd4 {[%emt 0:01:05]} Ne4 {[%emt 0:04:51]} 15. Nxe4 {[%emt 0:03:10]} fxe4 {[%emt 0:00:05]} 16. Bc3 {[%emt 0:16:29] Dodges Nb4} Nc7 {[%emt 0:05:39]} (16... Nb4 $15) 17. Kh1 {[%emt 0:01:20]} ({Better is} 17. h3 $1 $11) 17... a4 {[%emt 0:03:42]} (17... Bg4 $15) 18. Bb4 {[%emt 0:05:59]} Rf6 {[%emt 0:01:32]} 19. Nc3 {[%emt 0:07:35]} e3 {[%emt 0:08:47]} 20. Qd3 {[%emt 0:07:07] aiming for Ne4.} c5 {[%emt 0:01:49]} (20... axb3 $11 21. Ne4 (21. axb3 Rxa1 22. Rxa1 Bf5 $11) 21... Rh6 22. Nxd6 (22. Bxd6 Qh5 $17) 22... Qh5) 21. dxc5 {[%emt 0:00:27]} (21. Nxa4 Bf5 (21... Rxa4 22. bxa4 cxb4 23. c5 $15) 22. Qe2 Rxa4 23. dxc5 Rxb4 $19 (23... dxc5 24. Bc3 $17)) (21. Ne4 $14 cxb4 22. Nxf6+ gxf6 23. Rae1) 21... dxc5 $11 {[%emt 0:00:12]} 22. Ba3 {[%emt 0:05:24] [#] Strongly threatening Rfe1.} axb3 {[%emt 0:00:13] White must now prevent ...Bf5.} 23. axb3 {[%emt 0:00:02]} Bf5 {[%emt 0:00:32]} 24. Qe2 {[%emt 0:02:31]} Rd8 {[%emt 0:00:45] Repels Rfd1} 25. Rad1 {[%emt 0:00:36] Repels Rd2. Rxd8 is the strong threat.} Rfd6 {[%emt 0:00:34]} 26. Rxd6 {[%emt 0:07:58]} Rxd6 {[%emt 0:00:04]} 27. Rd1 {[%emt 0:06:16] Dodges Bd3} Rd4 {[%emt 0:06:16]} (27... Rxd1+ $11 {should be considered.} 28. Qxd1 (28. Nxd1 $2 Bg4 $19) 28... Ba5) 28. Bf3 {[%emt 0:02:43]} h6 {[%emt 0:04:12]} (28... Kh8 $14) 29. Kg2 {[%emt 0:02:48]} (29. Bb2 $16) 29... g5 {[%emt 0:01:18]} 30. fxg5 {[%emt 0:02:14]} hxg5 {[%emt 0:00:01]} 31. g4 {[%emt 0:01:11]} ({White should play} 31. h3 $16) 31... Ne6 {[%emt 0:03:58]} 32. Qxe3 {[%emt 0:02:54]} (32. gxf5 $2 {perishes.} Nf4+ 33. Kf1 Nxe2 $19) (32. Nd5 $16 Bh7 33. Nf6+ (33. Nxb6 $2 {is the wrong capture.} Nf4+ 34. Kf1 Nxe2 $19) 33... Kf7 34. Nxe8 Nf4+ 35. Kf1 Nxe2 36. Kxe2 Kxe8 37. Kxe3) 32... Nf4+ {[%emt 0:00:11] The position is equal.} 33. Kf2 {[%emt 0:00:01]} Nh3+ {[%emt 0:02:27]} 34. Ke2 {[%emt 0:00:01]} Nf4+ {[%emt 0:01:09]} 35. Kf2 {[%emt 0:00:01][%cal Be2f2,Bf2e3,Be3d2][%mdl 32] Really sharp!} Qxe3+ {[%emt 0:01:02]} 36. Kxe3 {[%emt 0:00:05]} Bc2 {[%emt 0:00:03][%csl LRb3,LRd1]} 37. Rxd4 {[%emt 0:00:58]} cxd4+ {[%emt 0:00:06]} 38. Kd2 {[%emt 0:00:04]} Bxb3 {[%emt 0:00:14] [#] Threatens to win with ...Ba5.} (38... dxc3+ $2 {loses.} 39. Kxc2 Bc7 40. Bxb7 $18) 39. Nd5 {[%emt 0:01:54]} Ba5+ {[%emt 0:00:30]} 40. Bb4 {[%emt 0:00:03]} Bxb4+ {[%emt 0:01:46]} 41. Nxb4 {[%emt 0:00:01]} b6 {[%emt 0:00:49] Weighted Error Value: White=0.22 (precise) /Black=0.19 (very precise) .  Mistake:       	White=5     	Black=6      Inaccurate:     	White=2     	Black=2      OK:         	White=10    	Black=12     Best:        	White=5     	Black=2} 1/2-1/2

[Event "Budapest IM-B ONE WEEK Feb 2024"]
[Site "Budapest"]
[Date "2024.03.02"]
[Round "9.3"]
[White "Jakab, Attila"]
[Black "Papp, Sarah"]
[Result "*"]
[ECO "D37"]
[WhiteElo "2282"]
[BlackElo "2281"]
[Annotator "RC"]
[PlyCount "25"]
[EventDate "2024.02.25"]
[EventType "tourn"]
[EventCountry "HUN"]
[SourceTitle "playchess.com"]
[Source "ChessBase"]
[SourceQuality "1"]
[TimeControl "5400+30"]

1. d4 {[%emt 0:00:02]} d5 {[%emt 0:00:11]} 2. c4 {[%emt 0:00:18]} e6 {[%emt 0:00:05]} 3. Nf3 {[%emt 0:00:13]} Nf6 {[%emt 0:01:07]} 4. Nc3 {[%emt 0:00:16]} a6 {[%emt 0:00:16]} 5. cxd5 {[%emt 0:00:42]} exd5 {[%emt 0:00:03]} 6. Bg5 {[%emt 0:00:13]} Be6 {[%emt 0:00:17]} 7. e3 {[%emt 0:00:09]} Nbd7 {[%emt 0:00:34]} 8. Be2 {[%emt 0:02:27]} c6 {[%emt 0:00:51]} 9. Ne5 {[%emt 0:00:45]} Be7 {[%emt 0:00:55]} 10. f4 {[%emt 0:01:10]} Nxe5 {[%emt 0:02:21]} 11. dxe5 {[%emt 0:03:11]} Ng8 {[%emt 0:05:59]} 12. Bxe7 {[%emt 0:00:17]} Nxe7 {[%emt 0:00:11]} 13. Qd2 {[%emt 0:00:18]} *

[Event "Budapest IM-B ONE WEEK Feb 2024"]
[Site "Budapest"]
[Date "2024.03.02"]
[Round "9.3"]
[White "Nemeth, Zoltan"]
[Black "Mouhamad, Joachim"]
[Result "1-0"]
[ECO "D37"]
[WhiteElo "2194"]
[BlackElo "2316"]
[Annotator "TA"]
[PlyCount "151"]
[EventDate "2024.02.25"]
[EventType "tourn"]
[EventCountry "HUN"]
[SourceTitle "playchess.com"]
[Source "ChessBase"]
[SourceQuality "1"]
[TimeControl "5400+30"]

{[%evp 9,151,27,21,22,28,31,34,13,14,0,2,-2,0,0,0,7,2,-22,9,-6,0,0,0,0,0,0,0,-18,-19,-45,14,7,4,-8,-8,-11,0,0,50,0,-3,-9,-17,-22,0,0,0,0,0,0,0,0,0,0,-7,-89,-56,-45,-42,-81,-71,-75,-68,-71,-38,-45,-48,-152,-172,-234,-214,-207,-128,-136,-139,-108,-142,-131,-141,-212,-182,-147,-147,-274,-12,-12,-10,-14,0,0,190,190,190,190,190,190,190,190,190,190,190,190,11351,190,190,0,190,190,190,190,190,0,190,0,190,190,190,190,190,190,190,172,11866,36,29951,172,11536,11494,11398,10993,10290,10041,7413,5317,2153,1607,1410,233,29974,29972,29972,6312,29981,29979]} 1. d4 {[%emt 0:00:02]} d5 {[%emt 0:00:11]} 2. c4 {[%emt 0:00:18]} e6 {[%emt 0:00:05]} 3. Nf3 {[%emt 0:00:13]} Nf6 {[%emt 0:01:07]} 4. Nc3 {[%emt 0:00:16]} a6 {[%emt 0:00:16]} 5. cxd5 {[%emt 0:00:42]} exd5 {[%emt 0:00:03]} 6. Bg5 {[%emt 0:00:13]} Be6 {[%emt 0:00:17]} 7. e3 {[%emt 0:00:09]} Nbd7 {[%emt 0:00:34]} 8. Be2 {[%emt 0:02:27] Weiß steht etwas besser.} c6 {[%emt 0:00:51]} 9. Ne5 {[%emt 0:00:45]} Be7 {[%emt 0:00:55]} 10. f4 {[%emt 0:01:10]} Nxe5 {[%emt 0:02:21]} 11. dxe5 {[%emt 0:03:11]} Ng8 {[%emt 0:05:59]} 12. Bxe7 {[%emt 0:00:17]} Nxe7 {[%emt 0:00:11]} 13. Qd2 {[%emt 0:00:18]} O-O {[%emt 0:03:18]} 14. O-O {[%emt 0:01:40]} f6 {[%emt 0:04:30]} 15. exf6 {[%emt 0:00:31]} Rxf6 {[%emt 0:00:17]} 16. Rad1 {[%emt 0:01:03]} Qb6 {[%emt 0:10:46]} 17. Na4 {[%emt 0:01:10]} Qa7 {[%emt 0:00:24]} 18. b4 {[%emt 0:01:26]} Re8 {[%emt 0:19:07]} 19. Nc5 {[%emt 0:03:11]} Bc8 {[%emt 0:00:42]} (19... Nf5 $15) 20. Bh5 $11 {[%emt 0:06:40]} Ref8 {[%emt 0:02:50]} 21. Rf2 {[%emt 0:05:52] [#]} a5 $1 {[%emt 0:03:08]} 22. a3 {[%emt 0:00:43]} axb4 {[%emt 0:00:06]} 23. axb4 {[%emt 0:00:23]} Bf5 {[%emt 0:01:58]} ({Besser ist} 23... Nf5 $11) 24. g4 {[%emt 0:01:24]} (24. Qc3 $14) 24... b6 {[%emt 0:00:57]} 25. g5 {[%emt 0:03:21]} Rd6 {[%emt 0:02:43]} 26. Nb3 {[%emt 0:00:25]} Be4 {[%emt 0:06:48]} 27. Bg4 {[%emt 0:02:08]} c5 {[%emt 0:02:43] Verhindert Nd4} 28. Ra1 {[%emt 0:04:48]} Qc7 {[%emt 0:00:32]} 29. Qc3 {[%emt 0:00:42]} Rc6 {[%emt 0:00:59][%cal Oh7h5]} 30. bxc5 {[%emt 0:07:08]} bxc5 {[%emt 0:00:07]} 31. Rfa2 {[%emt 0:00:37] Ra7 wäre nun fies.} d4 {[%emt 0:00:30]} 32. exd4 {[%emt 0:17:52]} (32. Qc1 $1 $11 {hält das Gleichgewicht.}) 32... Qxf4 {[%emt 0:00:17]} (32... Rxf4 33. Qg3 h5 34. Bxh5 $16) 33. Qg3 {[%emt 0:00:31]} cxd4 {[%emt 0:02:15]} (33... Qxg5 34. Be6+ (34. dxc5 $2 Rg6 $19) 34... Rxe6 35. Qxg5 $11) 34. Qxf4 {[%emt 0:02:00]} Rxf4 {[%emt 0:00:26]} 35. Ra8+ {[%emt 0:05:06]} Kf7 {[%emt 0:00:53]} 36. Bd7 {[%emt 0:01:07]} Rd6 {[%emt 0:08:28]} 37. Be8+ {[%emt 0:01:48]} Ke6 {[%emt 0:00:01]} 38. Nc5+ {[%emt 0:01:46]} (38. R8a7 $15) 38... Kf5 $17 {[%emt 0:03:07]} 39. R8a7 {[%emt 0:01:03]} (39. R1a6 {ist eine bessere Verteidigung.} Ke5 40. Rxd6 Kxd6 41. Nxe4+ Rxe4 42. h3) 39... Rg4+ $19 {[%emt 0:06:51]} 40. Kf1 {[%emt 0:00:11]} Nd5 {[%emt 0:03:16] Und ...Ne3+ würde nun gewinnen.} 41. Rf7+ {[%emt 0:02:56]} (41. Bd7+ Rxd7 42. Nxd7 Ne3+ (42... Kxg5 43. Nc5 $11) (42... Rxg5 43. R7a3 $17) 43. Ke1 Rg1+ (43... Kxg5 $2 44. R1a2 $19) (43... Rxg5 44. R1a5+ Bd5 45. Nb6 $11) (43... Nc2+ $2 44. Kf1 $19) 44. Kf2 Rg2+ (44... Rxg5 45. R1a5+ Bd5 46. Nb6 $15) 45. Ke1 Nc2+ (45... Rxh2 $2 46. R1a5+ Kf4 47. Ne5 $19) (45... Kxg5 46. Nc5 $11) 46. Kd1 d3 $19 (46... Rg1+ $2 47. Kd2 $19)) 41... Kxg5 {[%emt 0:02:47]} 42. Rxg7+ {[%emt 0:08:51]} Bg6 {[%emt 0:00:01]} 43. Bxg6 {[%emt 0:00:52]} hxg6 {[%emt 0:00:26]} (43... Rxg6 44. Rxg6+ hxg6 45. Ra6 $15) 44. Ke2 {[%emt 0:03:44]} (44. Rf7 $17 {war einen Versuch wert.}) 44... Rc6 {[%emt 0:05:31]} 45. Ra5 {[%emt 0:00:43] [#]} Kh6 $1 {[%emt 0:00:01]} 46. Rga7 {[%emt 0:02:37]} (46. Rf7 $17) 46... Rc8 $2 {[%emt 0:01:52]} (46... Rf6 $19 {Droht stark ...Nb4.} 47. Nd7 Rf5 48. Rxd5 Rg2+ (48... Rxd5 49. Nf6 $15) 49. Kd3 Rxd5) 47. Ra8 $1 $11 {[%emt 0:00:31]} Rxa8 {[%emt 0:00:39]} 48. Rxa8 {[%emt 0:00:07][%mdl 4096] Endspiel. KRN-KRN} Ne7 {[%emt 0:01:23]} 49. Kf3 {[%emt 0:00:51]} Rh4 {[%emt 0:00:59]} (49... Rg1 $11) 50. Rh8+ $18 {[%emt 0:00:35]} Kg5 {[%emt 0:00:01]} 51. Ne6+ {[%emt 0:00:32]} Kf6 {[%emt 0:00:10]} 52. Rxh4 {[%emt 0:00:08]} Kxe6 {[%emt 0:00:06]} 53. Rxd4 {[%emt 0:00:06] KR-KN} Nf5 {[%emt 0:00:51]} 54. Ra4 {[%emt 0:00:13]} Kf6 {[%emt 0:00:47]} 55. Kf4 {[%emt 0:00:45] Droht Matt per Ra6+.} Kg7 $2 {[%emt 0:00:29]} (55... Nh6 56. Ra6+ Kg7) 56. Kg5 $2 {[%emt 0:00:14]} (56. Ke5 Ne3 57. Rd4) 56... Nd6 {[%emt 0:00:01]} 57. Kf4 $2 {[%emt 0:01:20]} (57. Ra7+ $18 Nf7+ 58. Kg4) 57... Nf7 $2 {[%emt 0:00:19]} (57... Nf5 $1 $11 {und Schwarz steht sicher.}) 58. Ke4 {[%emt 0:00:07]} Kf6 {[%emt 0:01:04]} 59. Kd5 {[%emt 0:00:05]} Nh6 {[%emt 0:00:47]} 60. Ke4 {[%emt 0:02:03]} Nf7 $1 {[%emt 0:00:18]} 61. Kf4 {[%emt 0:00:57]} Kg7 {[%emt 0:00:31]} 62. Ra7 {[%emt 0:00:17]} Kf6 {[%emt 0:00:13]} 63. Ra6+ {[%emt 0:00:04]} Kg7 {[%emt 0:00:04]} 64. Ke4 {[%emt 0:00:08]} Kh6 {[%emt 0:00:35]} 65. Kd5 {[%emt 0:00:08]} Ng5 $2 {[%emt 0:00:35]} (65... Kh5 66. Ra8 Kh6) 66. Ke5 $2 {[%emt 0:01:34]} (66. Ra7 $18 Nf3 67. Ra3) 66... Kh5 $2 {[%emt 0:00:46][%mdl 8192] Verliert die Partie.} (66... Nf3+ $14 67. Kf4 Ng5 (67... Nxh2 68. Ra1 Kg7 69. Rh1 g5+ 70. Kg3 Kf6 71. Rxh2 Ke7 72. Rh6)) 67. Kf4 $2 {[%emt 0:01:28]} (67. Ra3 {setzt Matt} Kg4 68. Kf6 Nf3 69. h3+ (69. Kxg6 Nxh2 70. Ra4+ Kf3 $11) 69... Kf4 70. Kxg6 Ne5+ 71. Kh5 Nf7 72. Ra5) 67... Nh3+ $2 {[%emt 0:00:32]} (67... Nf7 68. Ra7 g5+ 69. Kf3 Ne5+ 70. Kg3 Nc4 71. Rh7+ Kg6) 68. Kg3 {[%emt 0:01:21]} Ng5 {[%emt 0:00:02]} 69. Ra7 {[%emt 0:00:30] Weiss droht Re7 und Matt.} Ne6 {[%emt 0:00:36]} 70. Re7 {[%emt 0:00:17]} Nd4 {[%emt 0:00:34]} 71. Kf4 {[%emt 0:01:31]} Kh6 {[%emt 0:00:26] Verhindert Rh7+} 72. Ra7 {[%emt 0:01:50]} Nf5 {[%emt 0:00:21]} 73. Ra8 $2 {[%emt 0:00:41]} (73. Rd7 Nh4 74. Rd5) 73... Nd6 $2 {[%emt 0:00:39] [#]} (73... Ne7 $18 74. Rh8+ Kg7) 74. Ke5 $1 {[%emt 0:00:19]} Nf5 {[%emt 0:01:41]} 75. Kf6 {[%emt 0:00:05][%cal Ra8h8]} Kh7 {[%emt 0:00:14]} 76. Ra3 {[%emt 0:00:30] Gewichteter Fehlerwert: Weiß=0.33/Schwarz=0.31.  Verlustzug:     	---       	Schwarz=3     Gewinn verpasst:   	Weiß=1     	Schwarz=1     Fehler:       	Weiß=7     	Schwarz=5     Ungenau:       	Weiß=2     	Schwarz=4     OK:         	Weiß=20    	Schwarz=18    Bester:       	Weiß=7     	Schwarz=9     Stark:        	Weiß=1     	Schwarz=2} 1-0

[Event "Budapest IM-B ONE WEEK Feb 2024"]
[Site "Budapest"]
[Date "2024.03.02"]
[Round "9.4"]
[White "Szeberenyi, Adam"]
[Black "Horvath, David"]
[Result "*"]
[ECO "B23"]
[WhiteElo "2260"]
[BlackElo "2330"]
[Annotator "RC"]
[PlyCount "25"]
[EventDate "2024.02.25"]
[EventType "tourn"]
[EventCountry "HUN"]
[SourceTitle "playchess.com"]
[Source "ChessBase"]
[SourceQuality "1"]
[TimeControl "5400+30"]

1. e4 {[%emt 0:00:04]} c5 {[%emt 0:00:14]} 2. Nc3 {[%emt 0:00:08]} d6 {[%emt 0:00:05]} 3. d4 {[%emt 0:00:04]} cxd4 {[%emt 0:00:05]} 4. Qxd4 {[%emt 0:00:06]} Nc6 {[%emt 0:00:11]} 5. Qd2 {[%emt 0:00:05]} Nf6 {[%emt 0:00:05]} 6. b3 {[%emt 0:00:09]} e6 {[%emt 0:00:11]} 7. Bb2 {[%emt 0:00:04]} d5 {[%emt 0:00:10]} 8. exd5 {[%emt 0:00:06]} exd5 {[%emt 0:00:05]} 9. O-O-O {[%emt 0:00:08]} Be6 {[%emt 0:00:05]} 10. Kb1 {[%emt 0:01:32]} Qa5 {[%emt 0:01:27]} 11. Nb5 {[%emt 0:00:06]} Qxd2 {[%emt 0:08:54]} 12. Rxd2 {[%emt 0:00:06]} Ne4 {[%emt 0:01:52]} 13. Re2 {[%emt 0:00:21]} *

[Event "Budapest IM-B ONE WEEK Feb 2024"]
[Site "Budapest"]
[Date "2024.03.02"]
[Round "9.4"]
[White "Matyassy, Lazar"]
[Black "Golis, Wiktor"]
[Result "1/2-1/2"]
[ECO "B23"]
[WhiteElo "2176"]
[BlackElo "2123"]
[Annotator "RC"]
[PlyCount "35"]
[EventDate "2024.02.25"]
[EventType "tourn"]
[EventCountry "HUN"]
[SourceTitle "playchess.com"]
[Source "ChessBase"]
[SourceQuality "1"]
[TimeControl "5400+30"]

1. e4 {[%emt 0:00:04]} c5 {[%emt 0:00:14]} 2. Nc3 {[%emt 0:00:08]} d6 {[%emt 0:00:05]} 3. d4 {[%emt 0:00:04]} cxd4 {[%emt 0:00:05]} 4. Qxd4 {[%emt 0:00:06]} Nc6 {[%emt 0:00:11]} 5. Qd2 {[%emt 0:00:05]} Nf6 {[%emt 0:00:05]} 6. b3 {[%emt 0:00:09]} e6 {[%emt 0:00:11]} 7. Bb2 {[%emt 0:00:04]} d5 {[%emt 0:00:10]} 8. exd5 {[%emt 0:00:06]} exd5 {[%emt 0:00:05]} 9. O-O-O {[%emt 0:00:08]} Be6 {[%emt 0:00:05]} 10. Kb1 {[%emt 0:01:32]} Qa5 {[%emt 0:01:27]} 11. Nb5 {[%emt 0:00:06]} Qxd2 {[%emt 0:08:54]} 12. Rxd2 {[%emt 0:00:06]} Ne4 {[%emt 0:01:52]} 13. Re2 {[%emt 0:00:21]} O-O-O {[%emt 0:08:49]} 14. f3 {[%emt 0:00:14]} Nc5 {[%emt 0:07:07]} 15. Nd4 {[%emt 0:06:25]} Nxd4 {[%emt 0:03:31]} 16. Bxd4 {[%emt 0:00:23]} Bf5 {[%emt 0:02:12]} 17. Re5 {[%emt 0:10:09]} Bg6 {[%emt 0:04:29]} 18. g3 {[%emt 0:06:56]} 1/2-1/2

[Event "Budapest IM-B ONE WEEK Feb 2024"]
[Site "Budapest"]
[Date "2024.03.02"]
[Round "9.5"]
[White "Ulasevich, Sergei"]
[Black "Toth-Goczo, Melinda"]
[Result "*"]
[ECO "D02"]
[WhiteElo "2261"]
[BlackElo "2189"]
[Annotator "RC"]
[PlyCount "22"]
[EventDate "2024.02.25"]
[EventType "tourn"]
[EventCountry "HUN"]
[SourceTitle "playchess.com"]
[Source "ChessBase"]
[SourceQuality "1"]
[TimeControl "5400+30"]

1. d4 {[%emt 0:00:10]} d5 {[%emt 0:00:06]} 2. Nf3 {[%emt 0:00:10]} Nf6 {[%emt 0:00:07]} 3. Bf4 {[%emt 0:00:08]} e6 {[%emt 0:00:36]} 4. e3 {[%emt 0:00:10]} Bd6 {[%emt 0:00:16]} 5. Nbd2 {[%emt 0:00:12]} O-O {[%emt 0:01:01]} 6. c3 {[%emt 0:00:26]} c5 {[%emt 0:00:26]} 7. Bg3 {[%emt 0:01:01]} Qc7 {[%emt 0:00:18]} 8. dxc5 {[%emt 0:01:04]} Qxc5 {[%emt 0:00:08]} 9. c4 {[%emt 0:01:24]} dxc4 {[%emt 0:12:15]} 10. Bxc4 {[%emt 0:00:47]} Bxg3 {[%emt 0:00:48]} 11. hxg3 {[%emt 0:00:15]} Nc6 {[%emt 0:00:43]} *